Cogmind - Beta 14 @@@ ROGUE MODE // 2024.08.29 @ 04:13:15 Player: J1ang-5h1 Result: Destroyed by SH-4RV(R) with Subdweller Beam Cannon Performance ------------- Evolutions (0) 0 Regions Visited (2) 400 Robots Destroyed (37) 185 Value Destroyed (806) 806 Prototype IDs (4) 80 Alien Tech Used (0) 0 Bonus (8) 8 TOTAL SCORE: 1479 Bonus ------- High Alert Combat Kills 8 Cogmind --------- Core Integrity 0/250 Matter 186/300 Energy 250/250 System Corruption 0% Temperature Cool (9) Movement Treading (240) Ox1 Location -10/Subcaves Parts ------- > --- POWER (1) -------- Ion Engine > --- PROPULSION (2) --- Improved Treads Improved Treads > --- UTILITY (2) ------ Huge Storage Unit Improved Terrain Scanner > --- WEAPON (2) ------- Barrage Gun Barrage Gun > --- INVENTORY (25) --- Subdweller Power Source Subdweller Power Source Subdweller Power Source Subdweller Power Source Improved Treads Subdweller Monowheel Disposable Heat Sink Disposable Heat Sink Disposable Heat Sink Disposable Heat Sink Large Matter Pod (150) Structural Scanner ECM Suite Weapon Shielding Heavy EM Pulse Gun Medium Laser Subdweller Machine Gun Subdweller Machine Gun Dirty Datajack (20) Mining Laser Flamer Flamer Peak State ------------ > --- POWER ------------ Ion Engine > --- PROPULSION ------- Improved Treads Improved Treads > --- UTILITY ---------- Huge Storage Unit Improved Terrain Scanner > --- WEAPON ----------- Barrage Gun Barrage Gun > --- INVENTORY -------- Subdweller Power Source Subdweller Power Source Subdweller Power Source Subdweller Power Source Improved Treads Improved Treads Subdweller Monowheel Disposable Heat Sink Disposable Heat Sink Disposable Heat Sink Disposable Heat Sink Large Matter Pod Structural Scanner ECM Suite Weapon Shielding Heavy EM Pulse Gun Medium Laser Subdweller Machine Gun Subdweller Machine Gun Dirty Datajack Mining Laser Flamer Flamer [Rating: 19] Favorites ----------- Power Ion Engine Engine Ion Engine Propulsion Improved Treads Treads Improved Treads Leg Aluminum Leg Utility Seismic Detector Device Seismic Detector Storage Huge Storage Unit Protection Weapon Shielding Weapon Heavy EM Pulse Gun Energy Gun Heavy EM Pulse Gun Ballistic Gun Barrage Gun Special Weapon Mining Laser Build | -11 -10 -10 ------- Run | Yrd Mat Sub Slots Evolved . | . . . Power . | . . . Propulsion . | . . . Utility . | . . . Weapon . | . . . Parts Attached 35 | 2 15 18 Power 3 | . 1 2 Engine 3 | . 1 2 Core . | . . . Reactor . | . . . Propulsion 4 | . 3 1 Treads 4 | . 3 1 Leg . | . . . Wheel . | . . . Hover . | . . . Flight . | . . . Utility 7 | 1 2 4 Device 4 | 1 1 2 Storage 1 | . 1 . Processor . | . . . Hackware . | . . . Protection 2 | . . 2 Artifact . | . . . Weapon 21 | 1 9 11 Energy Gun 14 | 1 7 6 Energy Cannon . | . . . Ballistic Gun 2 | . . 2 Ballistic Cannon . | . . . Launcher . | . . . Special Weapon 5 | . 2 3 Impact Weapon . | . . . Slashing Weapon . | . . . Piercing Weapon . | . . . Special Melee Weapon . | . . . Unidentified Prototypes . | . . . Parts Lost 6 | . . 6 Power 1 | . . 1 Propulsion 1 | . . 1 Utility 1 | . . 1 Weapon 3 | . . 3 Highest Loss Streak 3 | . . 3 To Critical Strikes . | . . . Average Slot Usage (%) 99 | . 99 99 Engine 14 | . 14 14 Treads 22 | . 19 27 Leg 4 | . 8 . Device 12 | . 14 9 Storage 14 | . 14 14 Protection 1 | . . 4 Energy Gun 24 | . 26 21 Special Weapon 3 | . 1 5 Peak Build Rating 19 | 7 13 19 Average Rating 12 | 6 10 14 On Entrance 8 | 6 7 13 Naked Turns . | . . . Heaviest Build 92 | 13 92 92 Greatest Support 46 | 20 46 46 Greatest Overweight (x) 3 | . 3 3 Average Overweight (x) . | . . 1 Largest Inventory Capacity 25 | 8 25 25 Average Capacity 19 | 8 15 25 Most Carried 25 | 8 17 25 Average Carried 14 | 6 9 22 Final Capacity 25 | 8 25 25 Final Carried 22 | 7 17 22 Class Distribution -------------------- 100% | Mutant Dominant Class ---------------- Mutant | -10/Materials Mutant | -10/Subcaves Resources | -11 -10 -10 ----------- Run | Yrd Mat Sub Matter Collected 620 | 220 300 100 Remotely . | . . . Salvage Created 1237 | 81 847 309 Parts 79 | 5 56 18 Haulers Intercepted 2 | . 2 . Recyclers Shooed . | . . . Parts Field Recycled . | . . . Retrieved Matter . | . . . Parts Self-Destructed 3 | . . 3 Prevented . | . . . Kills | -11 -10 -10 ------- Run | Yrd Mat Sub Combat Hostiles Destroyed 27 | . 19 8 Guns 23 | . 17 6 AOE 3 | . 2 1 Classes Destroyed 8 | 2 5 1 Worker 1 | . 1 . Tunneler 3 | 1 2 . Hauler 2 | . 2 . Recycler 1 | 1 . . Watcher 3 | . 3 . Swarmer 11 | . 9 2 Grunt 10 | . 10 . Subdweller 6 | . . 6 Best Kill Streak 4 | 2 4 2 Combat Bots Only 3 | . 3 2 Max Kills in Single Turn 2 | 1 2 1 Gunslinging 1 | . 1 . Exploded 1 | . 1 1 Melee . | . . . Uniques/NPCs Destroyed . | . . . Combat | -11 -10 -10 -------- Run | Yrd Mat Sub Hostile Shots Fired 112 | . 54 58 Missed 30 | . 13 17 Damage Taken 1224 | . 374 850 Core 251 | . 42 209 Absorbed by Shields . | . . . Redirected to Shielding 36 | . . 36 Regen/Repaired (Parts) 119 | . 119 . Core Remaining (%) 100 | 100 . . Volleys Fired 96 | 5 49 42 Largest 2 | 2 2 2 Hottest 145 | 80 145 100 Shots Fired 161 | 7 82 72 Gun 147 | 7 77 63 Cannon . | . . . Launcher . | . . . Special 14 | . 5 9 Kinetic 16 | . . 16 Thermal 25 | 3 13 9 Explosive . | . . . Electromagnetic 120 | 4 69 47 Robot Hit Streak 18 | 3 8 18 Robot Miss Streak 3 | 2 3 3 Penetration Max . | . . . Secondary Targets 5 | . 4 1 Max Gunslinging Chain 1 | . 1 1 Shots Hit Robots 102 | 5 44 53 Core Hits 45 | 2 28 15 Critical Kills . | . . . Critical Parts Destroyed . | . . . Critical Strikes 1 | . 1 . Corrupt 1 | . 1 . Melee Attacks . | . . . Impact . | . . . Slashing . | . . . Piercing . | . . . Sneak Attacks . | . . . Combat Hostiles . | . . . Follow-up Attacks . | . . . Damage Inflicted 1636 | 85 862 689 Guns 1471 | 65 740 666 Cannons . | . . . Explosions 165 | 20 122 23 Melee . | . . . Ramming . | . . . Kinetic 225 | . . 225 Thermal 280 | 46 211 23 Explosive . | . . . Electromagnetic 1131 | 39 651 441 Impact . | . . . Slashing . | . . . Piercing . | . . . Highest Corruption . | . . . Average Corruption . | . . . Corruption Purged . | . . . Corruption Blocked . | . . . Overload Shots . | . . . Overflow Damage . | . . . Projectiles . | . . . Explosions . | . . . Melee . | . . . Knockbacks . | . . . Impact . | . . . Kinetic . | . . . Secondary . | . . . Self-Inflicted Damage . | . . . Shots . | . . . Rammed . | . . . Targets Rammed . | . . . Kicked . | . . . Crushed . | . . . Highest Temperature 162 | 30 162 . Average Temperature 42 | 14 44 . Received Heat Transfer 252 | . 102 150 Siege Activations . | . . . Robots Corrupted 2 | . 1 1 Combat Hostiles 1 | . . 1 Parts Fried 4 | . 3 1 Impact Corruptions . | . . . Robots Melted . | . . . Combat Hostiles . | . . . Parts Melted 3 | . 3 . Heat Transferred 483 | 124 359 . Parts Sabotaged . | . . . Parts Stolen . | . . . Parts Stripped . | . . . Power Chain Reactions 4 | 1 2 1 Alert | -11 -10 -10 ------- Run | Yrd Mat Sub Peak Influence 411 | 10 411 . Initial 6 | . 6 . Average 211 | 8 215 . Maximum Alert Level 2 | . 2 . Low Security (%) 25 | 100 24 . Level 1 73 | . 75 . Level 2 . | . . . Level 3 . | . . . Level 4 . | . . . Level 5 . | . . . High Security . | . . . Max Security . | . . . Squads Dispatched 2 | . 2 . Investigation 2 | . 2 . Extermination . | . . . Reinforcement . | . . . Assault . | . . . Garrison . | . . . Intercept . | . . . Searches Triggered . | . . . Construction Impeded . | . . . Haulers Reinforced . | . . . Active Scanning Responses . | . . . Cargo Convoy Interrupts . | . . . Stealth | -11 -10 -10 --------- Run | Yrd Mat Sub Distress Signals . | . . . Communications Jammed . | . . . Distress Signals . | . . . Times Spotted 37 | . 28 9 Peak Tracking Total 3 | . 3 3 Tactical Retreats 2 | . 2 . Traps | -11 -10 -10 ------- Run | Yrd Mat Sub Traps Triggered . | . . . Indirectly . | . . . Trap Hack Attempts . | . . . Triggered . | . . . Disarmed 2 | . 2 . Reprogrammed . | . . . Reused 1 | . . 1 Traps Extracted . | . . . Installed 1 | . . 1 Triggered 1 | . 1 . Most Traps Carried 1 | . . 1 Machines | -11 -10 -10 ---------- Run | Yrd Mat Sub Machines Disabled 1 | . 1 . Max in Single Turn 1 | . 1 . Machines Repaired . | . . . Machines Dismantled . | . . . Machines Sabotaged . | . . . Overloaded Fab Kills . | . . . Hacking | -11 -10 -10 --------- Run | Yrd Mat Sub Machines Accessed 10 | . 10 . Terminals 8 | . 8 . Fabricators . | . . . Repair Stations 1 | . 1 . Recycling Units 1 | . 1 . Scanalyzers . | . . . Garrison Access . | . . . Total Hacks 34 | . 34 . Successful 23 | . 23 . Failed 11 | . 11 . Catastrophic . | . . . Database Lockouts . | . . . Manual 16 | . 16 . Terminals 27 | . 27 . Fabricators . | . . . Repair Stations 5 | . 5 . Recycling Units 2 | . 2 . Scanalyzers . | . . . Garrison Access . | . . . Terminal Hacks 15 | . 15 . Robot Analysis 4 | . 4 . Prototype ID Bank 3 | . 3 . Locate Traps 3 | . 3 . Disarm Traps 2 | . 2 . Hauler Manifests 1 | . 1 . Zone Layout 2 | . 2 . Fabricator Hacks . | . . . Repair Station Hacks 4 | . 4 . Scan Component 2 | . 2 . Repair 2 | . 2 . Recycling Unit Hacks 1 | . 1 . Report Inventory 1 | . 1 . Scanalyzer . | . . . Garrison Access Hacks . | . . . Unauthorized Hacks 3 | . 3 . Terminals 2 | . 2 . Botnet 2 | . 2 . Fabricators . | . . . Repair Stations . | . . . Recycling Units 1 | . 1 . Tunnel 1 | . 1 . Scanalyzers . | . . . Garrison Access . | . . . Data Cores Recovered . | . . . Used . | . . . Hacking Detections 9 | . 9 . Full Trace Events . | . . . Feedback Events . | . . . Feedback Blocked . | . . . Robot Schematics Acquired . | . . . Robots Built . | . . . Authchips . | . . . Time . | . . . Total Robot Build Rating . | . . . Part Schematics Acquired . | . . . Parts Built . | . . . Authchips . | . . . Time . | . . . Total Part Build Rating . | . . . Parts Repaired 2 | . 2 . Time 32 | . 32 . Parts Recycled . | . . . Recycled Matter . | . . . Retrieved Matter . | . . . Retrieved Components . | . . . Parts Scanalyzed . | . . . Part Schematics Acquired . | . . . Parts Damaged . | . . . Bothacking | -11 -10 -10 ------------ Run | Yrd Mat Sub Used RIF Installer . | . . . Robots Hacked . | . . . Non-combat . | . . . Combat . | . . . Robot Hacks Applied . | . . . Relay Couplers Released . | . . . Fabnet Peak Effective % . | . . . Robots Rewired . | . . . Allies Hacked . | . . . Hacks Repelled . | . . . Allies | -11 -10 -10 -------- Run | Yrd Mat Sub Total Allies . | . . . Largest Group . | . . . Highest-Rated Group . | . . . Highest-Rated Ally . | . . . Total Orders . | . . . Ally Attacks . | . . . Total Damage . | . . . Kills . | . . . Allies Corrupted . | . . . Allies Melted . | . . . Intel | -11 -10 -10 ------- Run | Yrd Mat Sub Robot Analysis Total 4 | . 4 . Derelict Logs Recovered . | . . . Drone Launches . | . . . Drone Recoveries . | . . . Exploration | -11 -10 -10 ------------- Run | Yrd Mat Sub Turns Passed 3439 | 33 1989 1417 Spaces Moved 1533 | 14 1002 517 Core . | . . . Treads 1135 | . 618 517 Legs 398 | 14 384 . Wheels . | . . . Hover . | . . . Flight . | . . . Fastest Speed 120 | 120 120 240 Average Speed 194 | 120 171 240 Slowest Speed 400 | 120 400 400 Overloaded Moves . | . . . Propulsion Burnouts . | . . . Robots Hopped . | . . . Cave-ins Triggered . | . . . Exploration Rate (%) 46 | 3 99 37 Regions Visited 2 Branch Regions 1 Pre-discovered Areas 1 | . 1 . Known Exits Taken . | . . . Unknown Exits Taken 2 | 1 1 . Scrap Searched 6 | . . 6 Spaces Dug 4 | . 4 . Terrain Destroyed 15 | 2 11 2 Melee . | . . . Projectile 4 | . 4 . AOE 11 | 2 7 2 Terrain Rammed . | . . . Walls Destroyed . | . . . Machines Disabled . | . . . Actions | -11 -10 -10 --------- Run | Yrd Mat Sub Total 1804 | 22 1181 601 Wait 97 | . 90 7 Move 1531 | 13 1001 517 Hop . | . . . Pick Up 31 | 2 16 13 Fast Attach 2 | . 2 . Attach 8 | 1 1 6 Detach . | . . . Swap 25 | 1 12 12 Drop 13 | . 10 3 Fire 96 | 5 49 42 Melee . | . . . Ram . | . . . Kick . | . . . Crush . | . . . Escape Stasis . | . . . Rewire . | . . . Trap 1 | . . 1 Miscellaneous . | . . . Route ------- -11/Scrapyard -10/Materials (discovered 5 exits: [*Mat x3] / [*Min] / [*Sub]) -10/Subcaves (discovered 2 exits: [*Mat x2]) History --------- Turn | Location | Event 1 | -11/Scrapyard | Discovered new exit (range 2) 34 | -11/Scrapyard | Entered Materials 121 | -10/Materials | Discovered new exit (range 16) 320 | -10/Materials | Build established: Mutant 553 | -10/Materials | Discovered new exit (range 16) 698 | -10/Materials | Discovered new exit (range 15) 983 | -10/Materials | Discovered new exit (range 15) 1567 | -10/Materials | Repaired Hvy. EM Pulse Gun 1584 | -10/Materials | Repaired Imp. Treads 2006 | -10/Materials | Discovered new exit (range 9) 2023 | -10/Materials | Entered Subcaves 2045 | -10/Subcaves | Discovered new exit (range 12) 2183 | -10/Subcaves | Shifting Twisted Machinery released Flamer 2188 | -10/Subcaves | Shifting Twisted Machinery released Flamer 2438 | -10/Subcaves | Disturbed a concealed Subdweller 2548 | -10/Subcaves | Discovered new exit (range 15) 2591 | -10/Subcaves | Shifting Twisted Machinery released Sub. Monowheel 3040 | -10/Subcaves | Core integrity fell below 50% 3068 | -10/Subcaves | Lost 3 parts (1p2w) 3376 | -10/Subcaves | Disturbed a concealed Subdweller 3434 | -10/Subcaves | Core integrity fell below 20% 3440 | -10/Subcaves | Destroyed by SH-4RV(R) with Subdweller Beam Cannon Last Messages --------------- Machine Gun. 03052_ YP-39D(R) misfires. 03062_ YP-39D(R) system terminally corrupted. 03062_ Disposable Heat Sink fried. 03069_ Subatomizers dissect the Corrupted Sub. Machine Gun. 03069_ Acquired 35 matter. 03076_ Acquired Dirty Datajack. 03082_ Acquired Corrupted Sub. Machine Gun. 03396_ MM-LSM(R) destroyed. 03400_ Hvy. EM Pulse Gun destroyed. 03402_ Subatomizers dissect the Sub. Optics. 03410_ 31-8E5(R) affixes Scrap Shield Fragment to Scrap Shield. 03413_ 31-8E5(R) destroyed. 03417_ Subatomizers dissect the Disposable Heat Sink. 03417_ Imp. Treads destroyed. 03439_ SH-4RV(R) affixes Scrap Shield Fragment to Scrap Shield. Map ----- +----------------------------------------------------+ | | | | | | | | | | | | | | | ?????????????????????????????????????????????????? | | ?????????????????????????????????????????????????? | | ?????????????????????????????????????????????????? | | ??????????????????????????#??????????????????????? | | ????????????????????????##???????????????????????? | | ?????????????????????#???????????????????????????? | | ????????????????????????????????#????????????????? | | ??????????????#??????????????????????????????????? | | ?????????????????#???????????????#???????????????? | | ???????????????#???????#?????????????????????????? | | ??????????????????#??????????##?????#????????????? | | ???????????????????#?????????"#??????#???????????? | | ???????????????????????????## #?????#????????????? | | ??????????????????????????## ??#???#????????????? | | ????????????????????????###" #??##???????????????? | | ?????????#??#???????##### ## ### #???????????????? | | ??????????????# "####;#; <# ##??????????????? | | ???????????? ""&R%!%=! #??????????????? | | ??????????? ???#"" !&##!*@ #??##??????#???? | | ?????????????#?#"?????#### #??????????????? | | ?????????????#???????????## #??????????????? | | ??????????????????????#??#### #??????????????? | | ???????????????????? ??#?#??## #?????#????????? | | ????????????????? ???????#?## ###??????????????? | | ????????????????#???## #????## #???##??????????? | | ??????????????????? ?# #???# #???????????????? | | ???????????????? ## ##?## ##??#????????????? | | ???????????????# #?## #???#???????????? | | ???????????????# ?# ###??????????????? | | ??????????????## ## #???????????????? | | ????????? ??### ### ##???????????????? | | ????????? ?#? #?#??????????????? | | ???????? # ? ##???#???????????? | | ????????? # ??# ## ##??????????????? | | ????????? ???# ### #??????????????? | | ??????????# ???# ## #???????#??????? | | ???????????# #?## ##?????????????? | | ??????????## ## ##?????#??????? | | ?????????## ##???????????? | | ?????????# #???????????? | | ?????##??### ### #???????????? | | ??## # ## # ##?## #???????????? | | ??# ^ ##??### ## #?#?????????? | +----------------------------------------------------+ Best States ------------- Heat Dissipation 25 Energy Generation 15 Energy Capacity 250 Matter Stores 300 Matter Capacity 300 Sight Range 16 Terrain Scan Range 16 Terrain Scan Density 10 Weapon Shielding 33 Evasion (%) 55 Recoil Reduction 2 Item Schematics ----------------- None Robot Schematics ------------------ None Fabricated ------------ Nothing Alien Tech Used ----------------- None Achievements -------------- None Challenges ------------ None Game ------ Seed ThunderEncryptedInitializer Manual? 0 Play Time 00:28:10 Cumulative 250.6 hours Start 2024.08.29 @ 03:47:48 End 2024.08.29 @ 04:13:15 Sessions 1 Manual Loads 0 Difficulty Rogue Special Mode None Game No. 187 Rogue 177 Adventurer 0 Explorer 10 Win Type - Total 3 Types 3/0/0/0/0/0/0/0/0 Lore% 62 Gallery% 69 Achievement% 53 Wizard Run 0 Options --------- Layout 1 ASCII 0 Keyboard 0 Movement Arrows Keybinds 1 Fullscreen 1 Font 24/Smallcaps Map View 50x35 Zoom Use 0% Tactical HUD 1 Map Filters NONE Filters NONE Steam 1 RUN: 1d0ef3cc-0808-4c0f-b4d3-ba7d6bc4513d